bitfinex-derivatives/quotes_BTCF0:USTF0_20251209
["timestamp","ask_amount","ask_price","bid_price","bid_amount"]
[1765299187919,0.00015875,94519.0,94518.0,0.3713812]
[1765299188215,0.00015875,94519.0,94501.0,0.00015875]
[1765299188216,0.0105813,94518.0,94501.0,0.00015875]
[1765299188404,0.16159299,94511.0,94500.0,0.002]
[1765299188809,0.07603074,94510.0,94500.0,0.002]
[1765299189006,0.0105823,94509.0,94490.0,0.00105832]
[1765299189207,0.16159299,94500.0,94490.0,0.00105832]
[1765299189713,0.07603074,94507.0,94490.0,0.00105832]
[1765299190114,0.15930847,94508.0,94490.0,0.00105832]
[1765299190313,0.07603074,94509.0,94501.0,0.002]
[1765299190616,0.48492,94508.0,94501.0,0.002]
[1765299191006,0.48492,94508.0,94490.0,0.00305832]
[1765299191315,0.48492,94508.0,94491.0,0.0105842]
[1765299191515,0.3608,94492.0,94491.0,0.0105842]
[1765299191814,0.3608,94492.0,94490.0,0.00105832]
[1765299192913,0.3608,94494.0,94491.0,0.0105842]
[1765299193113,0.004,94492.0,94490.0,0.00105832]
[1765299193303,0.004,94492.0,94486.0,0.00015875]
[1765299193506,0.3608,94490.0,94486.0,0.00015875]
[1765299193809,0.78304,94490.0,94486.0,0.01074345]
[1765299194011,0.78304,94490.0,94486.0,0.00015875]
[1765299194411,0.3608,94490.0,94486.0,0.00015875]
[1765299195217,0.3608,94490.0,94486.0,0.00415875]
[1765299195817,5e-08,94498.0,94497.0,0.0105836]
[1765299196016,0.00786738,94540.0,94531.0,0.0105797]
[1765299196223,0.00786738,94540.0,94510.0,0.16159299]
[1765299196521,0.17896,94539.0,94529.0,0.3608]
[1765299196925,0.3608,94535.0,94525.0,0.00015875]
[1765299197223,0.17896,94539.0,94525.0,0.00015875]
[1765299197618,0.53976,94539.0,94525.0,0.36095875]
[1765299197836,0.54276,94539.0,94525.0,0.36095875]
[1765299198020,0.54276,94539.0,94530.0,0.0105798]
[1765299198217,0.18196,94539.0,94535.0,0.3608]
[1765299198424,0.18196,94539.0,94529.0,0.3608]
[1765299198623,0.19096,94539.0,94529.0,0.3618]
[1765299199022,0.3608,94534.0,94525.0,0.00015875]
[1765299199224,0.3608,94537.0,94530.0,0.001]
[1765299199426,0.16159299,94530.0,94504.0,0.0105828]
[1765299199623,0.3608,94527.0,94504.0,0.0105828]
[1765299200124,0.00015875,94525.0,94509.0,0.3608]
[1765299200720,0.00015875,94525.0,94510.0,0.0105821]
[1765299201325,0.3608,94519.0,94506.0,0.00015875]
[1765299201624,0.00015875,94525.0,94522.0,0.0105807]
[1765299202123,0.00315875,94525.0,94522.0,0.0105807]
[1765299202423,0.00315875,94525.0,94524.0,0.3608]
[1765299202622,0.00015875,94525.0,94524.0,0.3608]
[1765299203018,0.00015875,94525.0,94524.0,0.37385548]
[1765299203217,0.00315875,94525.0,94524.0,0.37385548]
[1765299203829,0.00315875,94525.0,94524.0,0.37485548]
[1765299204018,0.00315875,94525.0,94524.0,0.01405548]
[1765299204220,0.00315875,94525.0,94524.0,0.37485548]
[1765299212025,0.00315875,94525.0,94524.0,0.01405548]
[1765299212227,0.00315875,94525.0,94524.0,0.37485548]
[1765299212633,0.00015875,94525.0,94524.0,0.37485548]
[1765299212844,0.00315875,94525.0,94524.0,0.38543608]
[1765299214034,0.00315875,94525.0,94524.0,0.37485548]
[1765299214629,0.04428407,94525.0,94524.0,0.40980379]
[1765299215032,0.00315875,94525.0,94524.0,0.4098132]
[1765299215239,0.04429213,94525.0,94524.0,0.4098132]
[1765299216226,0.04587504,94525.0,94524.0,0.41064684]
[1765299217335,0.00315875,94525.0,94524.0,0.3618]
[1765299217634,0.04518832,94525.0,94524.0,0.40905928]
[1765299218643,0.04517832,94525.0,94524.0,0.40924909]
[1765299219229,0.00315875,94525.0,94524.0,0.3618]
[1765299219425,0.04517832,94525.0,94524.0,0.40924909]
[1765299219838,0.04467272,94525.0,94524.0,0.40927497]
[1765299220627,0.04467272,94525.0,94524.0,0.3618]
[1765299220831,0.04503928,94525.0,94524.0,0.40927497]
[1765299221027,0.04503928,94525.0,94524.0,0.04842346]
[1765299221028,0.00315875,94525.0,94524.0,0.04842346]
[1765299221233,0.0105814,94517.0,94499.0,0.3608]
[1765299221427,0.16159299,94520.0,94493.0,0.0105839]
[1765299221636,0.3608,94515.0,94493.0,0.40823591]
[1765299221837,0.3608,94515.0,94501.0,0.3608]
[1765299222033,0.05697764,94511.0,94503.0,0.0105828]
[1765299222338,0.49936,94510.0,94509.0,0.002]
[1765299223230,0.55633764,94510.0,94509.0,0.40983252]
[1765299223431,0.05697764,94513.0,94510.0,0.0105821]
[1765299223737,0.55633764,94512.0,94501.0,0.3608]
[1765299223942,0.55633764,94512.0,94491.0,0.36366196]
[1765299223943,0.05697764,94505.0,94491.0,0.36366196]
[1765299224242,0.05697764,94503.0,94491.0,0.41270359]
[1765299224742,0.3608,94501.0,94491.0,0.36366196]
[1765299225038,0.61695238,94512.0,94491.0,0.04845264]
[1765299225039,0.3608,94493.0,94491.0,0.04845264]
[1765299225236,0.49936,94492.0,94488.0,0.00015875]
[1765299225436,0.04172604,94492.0,94488.0,0.00015875]
[1765299225630,0.226,94491.0,94490.0,0.01164272]
[1765299225836,0.05713639,94505.0,94496.0,0.04742797]
[1765299226040,0.45608,94504.0,94496.0,0.05801167]
[1765299226340,0.45608,94504.0,94496.0,0.04742797]
[1765299226551,0.51305764,94504.0,94491.0,0.001]
[1765299227042,0.55637764,94503.0,94496.0,0.04836374]
[1765299227338,0.4994,94503.0,94496.0,0.04836374]
[1765299227539,0.4994,94502.0,94491.0,0.001]
[1765299227736,0.4994,94502.0,94496.0,0.04817847]
[1765299227940,0.3608,94503.0,94496.0,0.04817847]
[1765299228140,0.4994,94502.0,94496.0,0.04817847]
[1765299228337,0.4994,94502.0,94500.0,0.0105831]
[1765299228532,0.4994,94502.0,94496.0,0.04817847]
[1765299228829,0.4994,94502.0,94495.0,0.3608]
[1765299228830,0.001,94503.0,94495.0,0.3608]
[1765299229031,0.05172026,94510.0,94509.0,0.0105822]
[1765299229241,0.07603074,94539.0,94512.0,0.0105819]
[1765299229436,0.07603074,94538.0,94527.0,0.05794364]
[1765299229632,0.07603074,94538.0,94532.0,0.0105796]
[1765299229940,0.07603074,94539.0,94534.0,0.0105794]
[1765299230144,0.08389812,94540.0,94534.0,0.05941374]
[1765299230538,0.07603074,94539.0,94534.0,0.05941374]
[1765299230737,0.07603074,94539.0,94533.0,0.3608]
[1765299230936,0.00786738,94540.0,94534.0,0.04883434]
[1765299231137,0.002,94539.0,94534.0,0.04883629]
[1765299231446,0.8602,94538.0,94534.0,0.04883629]
[1765299231641,0.8602,94538.0,94534.0,0.04854117]
[1765299232238,0.4994,94538.0,94527.0,0.37153895]
[1765299232434,0.4994,94538.0,94534.0,0.04858775]
[1765299232747,0.07592521,94536.0,94534.0,0.04858905]
[1765299232943,0.07592521,94536.0,94534.0,0.04859712]
[1765299233644,0.7713793,94535.0,94534.0,0.04865704]
[1765299233949,0.7713793,94535.0,94484.0,0.010585]
[1765299233950,0.0105819,94513.0,94508.0,4e-05]
[1765299234140,0.010582,94511.0,94495.0,2.0]
[1765299234345,0.66095299,94510.0,94495.0,2.04865719]
[1765299234748,0.66095299,94510.0,94495.0,2.0]
[1765299234949,0.49936,94510.0,94502.0,0.3608]
[1765299235142,0.00015875,94512.0,94502.0,0.04787664]
[1765299235340,0.50532,94511.0,94502.0,0.04787664]
[1765299235540,0.006,94511.0,94502.0,0.04787664]
[1765299235744,0.00015875,94512.0,94506.0,0.0105825]
[1765299235943,0.008,94510.0,94506.0,0.0105825]
[1765299236352,0.00015875,94512.0,94502.0,0.04740708]
[1765299236353,0.00015875,94512.0,94511.0,0.010582]
[1765299236549,0.07593997,94529.0,94525.0,0.0105804]
[1765299236752,0.49932,94530.0,94525.0,0.05797186]
[1765299237154,0.49932,94530.0,94525.0,0.04739146]
[1765299237358,0.49932,94530.0,94525.0,0.04772633]
[1765299237655,0.57525997,94530.0,94525.0,0.04772633]
[1765299237843,0.49932,94530.0,94523.0,0.3608]
[1765299238039,0.50032,94530.0,94525.0,0.04772633]
[1765299238448,0.50432,94530.0,94525.0,0.04772633]
[1765299238654,0.50432,94530.0,94525.0,0.04776839]
[1765299238655,0.3608,94527.0,94525.0,0.04776839]
[1765299238950,0.3608,94526.0,94525.0,0.04776839]
[1765299239141,0.43673997,94526.0,94525.0,0.04776839]
[1765299239342,0.3608,94526.0,94525.0,0.04776839]
[1765299239548,0.83673997,94526.0,94518.0,0.00015875]
[1765299239749,0.0105808,94522.0,94518.0,0.00015875]
[1765299240548,0.0105812,94519.0,94501.0,0.0105831]
[1765299240750,0.16159299,94520.0,94510.0,0.0105821]
[1765299240951,0.16159299,94520.0,94507.0,0.3608]
[1765299241251,0.16159299,94520.0,94507.0,0.40955919]
[1765299241447,0.0105808,94522.0,94507.0,0.40955919]
[1765299241753,0.3713814,94517.0,94507.0,0.04875919]
[1765299241951,0.3608,94517.0,94507.0,0.04837821]
[1765299242546,0.3608,94517.0,94504.0,0.00015875]
[1765299242945,0.3608,94517.0,94510.0,0.001]
[1765299243350,0.49932,94516.0,94510.0,0.001]
[1765299243750,0.49932,94516.0,94507.0,0.0105824]
[1765299244751,0.50032,94516.0,94508.0,0.0105823]
[1765299245157,0.50032,94516.0,94507.0,0.04749103]
[1765299245158,0.3608,94517.0,94510.0,0.0105821]
[1765299245355,0.50028,94516.0,94507.0,0.04749103]
[1765299245548,0.50028,94516.0,94507.0,0.05807353]
[1765299245748,0.50028,94516.0,94504.0,0.01174155]
[1765299245948,0.50028,94516.0,94510.0,0.001]
[1765299246648,0.50028,94516.0,94508.0,0.05915427]
[1765299246649,0.50028,94516.0,94508.0,0.04857197]
[1765299246854,0.0105816,94515.0,94508.0,0.04857197]
[1765299247155,0.50028,94516.0,94508.0,0.04898621]
[1765299247453,0.0105816,94515.0,94508.0,0.04898621]
[1765299247657,0.0105816,94515.0,94510.0,0.001]
[1765299248053,0.0115816,94515.0,94510.0,0.001]
[1765299248354,0.010582,94512.0,94510.0,0.001]
[1765299248560,0.0105816,94515.0,94510.0,0.001]
[1765299248853,0.0115816,94515.0,94510.0,0.001]
[1765299249047,0.0105818,94513.0,94510.0,0.001]
[1765299249742,0.0105818,94513.0,94508.0,0.049305]
[1765299249947,0.0105821,94511.0,94508.0,0.001]
[1765299250152,0.3608,94509.0,94508.0,0.001]
[1765299250554,0.3608,94509.0,94504.0,0.00015875]
[1765299250753,0.0105827,94506.0,94504.0,0.00015875]
[1765299250960,0.3608,94509.0,94504.0,0.00015875]
[1765299251148,0.0105831,94502.0,94491.0,0.0105842]
[1765299251354,0.49924,94501.0,94491.0,0.04785823]
[1765299251658,0.04265936,94501.0,94498.0,0.0105834]
[1765299251954,0.49928,94500.0,94498.0,0.04786443]
[1765299252159,0.04265936,94501.0,94499.0,0.0105834]
[1765299252361,0.49924,94500.0,94499.0,0.0105834]
[1765299252555,0.04265936,94501.0,94499.0,0.0105834]
[1765299252860,0.49924,94500.0,94499.0,0.0105834]
[1765299253359,0.49924,94500.0,94499.0,0.05787968]
[1765299253952,0.49924,94500.0,94499.0,0.06087968]
[1765299254346,0.49928,94500.0,94499.0,0.06087968]
[1765299254551,0.04265936,94501.0,94499.0,0.06287968]
[1765299254751,0.49924,94500.0,94499.0,0.06345014]
[1765299255048,0.04265936,94501.0,94499.0,0.06445014]
[1765299255253,0.54189936,94501.0,94499.0,0.0135834]
[1765299255456,0.54189936,94501.0,94499.0,0.06445014]
[1765299255756,0.04112253,94500.0,94499.0,0.06400227]
[1765299256553,0.04112253,94500.0,94499.0,0.06100227]
[1765299256752,0.005,94501.0,94499.0,0.0135834]
[1765299257064,0.04235504,94501.0,94499.0,0.06226944]
[1765299257265,0.49924,94509.0,94508.0,0.0105823]
[1765299257465,0.49924,94509.0,94508.0,0.05926834]
[1765299257759,0.54159504,94509.0,94508.0,0.05926834]
[1765299258064,0.09939957,94509.0,94508.0,0.05926834]
[1765299258260,0.49924,94517.0,94510.0,0.010582]
[1765299258463,0.54093571,94517.0,94512.0,0.0105818]
[1765299258764,0.54093571,94517.0,94510.0,0.010582]
[1765299259268,0.54093571,94517.0,94515.0,0.3608]
[1765299259469,0.54093571,94517.0,94515.0,0.3713815]
[1765299259856,0.54093571,94517.0,94509.0,0.0105822]
[1765299260161,0.54193571,94517.0,94510.0,0.001]
[1765299261958,0.54193571,94517.0,94515.0,0.001]
[1765299262667,0.4992,94516.0,94515.0,0.001]
[1765299262859,0.4992,94516.0,94510.0,0.001]
[1765299263060,0.0105818,94513.0,94510.0,0.001]
[1765299264568,0.3608,94511.0,94510.0,0.001]
[1765299265165,0.04191034,94513.0,94509.0,0.3608]
[1765299265374,0.49916,94512.0,94510.0,0.0105821]
[1765299265662,0.54151975,94512.0,94510.0,0.05870565]
[1765299265875,0.04235975,94512.0,94511.0,0.3608]
[1765299266770,0.0417361,94512.0,94511.0,0.40885233]
[1765299267761,0.5750902,94516.0,94511.0,0.3608]
[1765299267961,0.04184636,94512.0,94511.0,0.40908829]
[1765299268380,0.04184636,94512.0,94511.0,0.41108829]
[1765299268873,0.4367302,94513.0,94511.0,0.002]
[1765299269077,0.11707714,94512.0,94511.0,0.04817401]
[1765299269271,0.07616149,94512.0,94511.0,0.05017401]
[1765299269466,0.47810843,94513.0,94511.0,0.05017401]
[1765299269777,0.0105819,94512.0,94511.0,0.002]
[1765299270072,0.0105819,94512.0,94511.0,0.001]
[1765299270266,0.0105819,94512.0,94511.0,0.04968928]
[1765299271075,0.0105819,94512.0,94511.0,0.001]
[1765299271375,0.40194694,94513.0,94495.0,0.0105838]
[1765299271574,0.0105819,94512.0,94511.0,0.04851338]
[1765299271967,0.0105826,94506.0,94492.0,0.05909748]
[1765299272168,0.3608,94505.0,94492.0,0.04851338]
[1765299272577,0.3608,94505.0,94491.0,0.3608]
[1765299273076,0.3608,94505.0,94494.0,0.04777305]
[1765299273277,0.0105828,94504.0,94492.0,0.001]
[1765299273478,0.3608,94495.0,94494.0,0.04899011]
[1765299273669,0.54140136,94495.0,94494.0,0.04899011]
[1765299274277,0.54140136,94495.0,94490.0,0.00116414]
[1765299275079,0.49908,94495.0,94492.0,0.0105841]
[1765299275276,0.54117155,94495.0,94492.0,0.0105841]
[1765299275578,0.49908,94495.0,94492.0,0.0105841]
[1765299275778,0.54071021,94495.0,94492.0,0.05884243]
[1765299275971,0.54071021,94495.0,94494.0,0.001]
[1765299276376,0.54071021,94495.0,94492.0,0.05225833]
[1765299276880,0.54071021,94495.0,94492.0,0.05025833]
[1765299277069,0.54071021,94495.0,94494.0,0.002]
[1765299277271,0.49908,94495.0,94494.0,0.002]
[1765299277579,0.54174184,94495.0,94492.0,0.05156833]
[1765299277773,0.54174184,94495.0,94494.0,0.002]
[1765299278279,0.54174184,94495.0,94494.0,0.05056833]
[1765299278473,0.54174184,94495.0,94494.0,0.04856833]
[1765299278781,0.54174184,94495.0,94494.0,0.05056833]
[1765299279081,0.540927,94495.0,94494.0,0.05212302]
[1765299279276,0.49908,94495.0,94494.0,0.002]
[1765299279482,0.540927,94495.0,94494.0,0.05212302]
[1765299279773,0.9548068,94495.0,94490.0,1e-08]
[1765299279979,0.3713842,94491.0,94490.0,1e-08]
[1765299280176,0.80831911,94491.0,94490.0,1e-08]
[1765299280391,0.7321842,94491.0,94490.0,1e-08]
[1765299280975,0.05218157,94465.0,94441.0,0.38847576]
[1765299281177,0.91202157,94465.0,94441.0,0.02767576]
[1765299281376,0.05220127,94442.0,94440.0,0.00105888]
[1765299281571,0.49904,94441.0,94440.0,0.00105888]
[1765299281776,1.99904,94441.0,94440.0,0.00105888]
[1765299282481,1.55314365,94441.0,94440.0,0.00105888]
[1765299282785,1.54219411,94441.0,94440.0,0.00105888]
[1765299283081,2.05022605,94441.0,94440.0,0.00205888]
[1765299283283,2.00808,94441.0,94440.0,0.00205888]
[1765299283484,2.05026605,94441.0,94440.0,0.00205888]
[1765299284080,2.00808,94441.0,94440.0,0.00205888]
[1765299284280,2.05471216,94441.0,94440.0,0.00205888]
[1765299284881,2.01308,94441.0,94440.0,0.00205888]
[1765299285480,2.05554567,94441.0,94440.0,0.00205888]
[1765299285677,2.05553816,94441.0,94440.0,0.00205888]
[1765299286990,1.55645816,94441.0,94440.0,0.00205888]
[1765299287176,2.05557816,94441.0,94440.0,0.00205888]
[1765299287473,2.41637816,94441.0,94440.0,0.00205888]
[1765299288384,2.41637816,94441.0,94440.0,8e-08]
[1765299289287,0.05319202,94424.0,94415.0,0.00105916]
[1765299289489,0.8705519,94423.0,94416.0,0.02829979]
[1765299289788,0.85996,94423.0,94417.0,0.02829979]
[1765299289984,0.85996,94423.0,94418.0,0.02829979]
[1765299290192,0.49916,94423.0,94419.0,0.02829979]
[1765299290396,0.49916,94423.0,94420.0,0.02829979]
[1765299290583,0.49916,94423.0,94419.0,0.04852795]
[1765299290780,0.50216,94423.0,94420.0,0.02829064]
[1765299290984,0.86296,94423.0,94419.0,0.04852795]
[1765299291184,0.873552,94423.0,94419.0,0.04852795]
[1765299291384,0.86296,94423.0,94419.0,0.04852795]
[1765299291589,0.87096,94423.0,94419.0,0.04852795]
[1765299291789,0.010592,94422.0,94419.0,0.04852795]
[1765299292290,0.87096,94423.0,94415.0,0.00105916]
[1765299292291,0.0105927,94416.0,94415.0,0.00105916]
[1765299292896,0.49916,94416.0,94415.0,0.02935656]
[1765299293388,0.54166762,94416.0,94415.0,0.02935218]
[1765299293583,0.49916,94416.0,94415.0,0.00105916]
[1765299293783,0.54190537,94416.0,94415.0,0.00105916]
[1765299294386,0.54490537,94416.0,94415.0,0.00105916]
[1765299294585,0.54490537,94416.0,94415.0,0.00205916]
[1765299294586,0.54990537,94416.0,94415.0,0.00205916]
[1765299295087,0.54490537,94416.0,94415.0,0.00105916]
[1765299295294,0.54590537,94416.0,94415.0,0.00505916]
[1765299295594,0.54290537,94416.0,94415.0,0.00505916]
[1765299295901,0.54190537,94416.0,94415.0,0.05197705]
[1765299296087,0.04274537,94416.0,94415.0,0.05197705]
[1765299296287,0.54194537,94416.0,94415.0,0.07826309]
[1765299296487,0.54294537,94416.0,94415.0,0.07826309]
[1765299296790,0.54294537,94416.0,94398.0,0.04894203]
[1765299296791,1.8871303,94416.0,94398.0,0.04894203]
[1765299296992,0.24382851,94410.0,94382.0,0.05457687]
[1765299297188,0.00015884,94409.0,94402.0,0.06441744]
[1765299297387,0.00015884,94409.0,94402.0,0.11324106]
[1765299298195,0.00015884,94409.0,94402.0,0.06441744]
[1765299298401,0.00015884,94409.0,94408.0,0.3608]
[1765299298700,0.00215884,94409.0,94408.0,0.3608]
[1765299299089,0.00015884,94409.0,94402.0,0.06841744]
[1765299299284,0.00115884,94409.0,94408.0,0.42521744]
[1765299299898,0.00115884,94409.0,94408.0,0.47295286]
[1765299300099,0.50039884,94409.0,94408.0,0.47295286]
[1765299300298,0.00115884,94409.0,94408.0,0.42521744]
[1765299300598,0.04263039,94411.0,94410.0,0.2964]
[1765299300993,0.49924,94425.0,94424.0,0.31529]
[1765299301297,0.09568,94458.0,94437.0,0.31529]
[1765299301494,0.09568,94458.0,94440.0,0.36411084]
[1765299301495,0.04253359,94441.0,94440.0,0.36411084]
[1765299301694,0.32974,94439.0,94438.0,0.00015884]
[1765299301995,0.32974,94439.0,94438.0,0.15056884]
[1765299302194,0.32974,94439.0,94438.0,0.00015884]
[1765299303298,0.32974,94427.0,94411.0,0.3608]
[1765299303498,0.32974,94412.0,94411.0,0.40955322]
[1765299303697,0.87126072,94412.0,94411.0,0.40956273]
[1765299303905,0.87126072,94412.0,94411.0,0.47398017]
[1765299304198,0.32974,94391.0,94388.0,0.05457687]
[1765299304398,0.32974,94391.0,94386.0,0.3608]
[1765299304399,0.87126321,94391.0,94386.0,0.3608]
[1765299304600,0.82898,94391.0,94386.0,0.3608]
[1765299304788,0.20708434,94391.0,94390.0,0.31538944]
[1765299304987,0.66394,94391.0,94390.0,0.31538944]
[1765299305189,0.70632434,94391.0,94390.0,0.36415528]
[1765299305593,0.87446434,94391.0,94390.0,0.05082528]
[1765299306100,0.87446434,94391.0,94386.0,0.3608]
[1765299306101,0.31726,94387.0,94386.0,0.3608]
[1765299306299,0.31726,94387.0,94385.0,4e-05]
[1765299306300,0.31726,94386.0,94385.0,4e-05]
[1765299306604,0.31726,94386.0,94369.0,0.3608]
[1765299306605,0.31726,94380.0,94379.0,0.3608]
[1765299306802,0.31726,94370.0,94369.0,0.3608]
[1765299306989,0.85922922,94370.0,94369.0,0.3608]
[1765299307600,0.85814072,94370.0,94369.0,0.3608]
[1765299307996,0.81754,94370.0,94369.0,0.3608]
[1765299308799,0.31726,94366.0,94365.0,0.00105972]
[1765299309098,0.81654,94366.0,94365.0,0.00105972]
[1765299309304,0.31726,94359.0,94336.0,0.3608]
[1765299309497,0.00015892,94357.0,94356.0,0.16345]
[1765299309698,0.31726,94356.0,94346.0,0.09092]
[1765299309998,0.31726,94354.0,94346.0,0.09092]
[1765299310192,0.31726,94347.0,94346.0,0.04795042]
[1765299310396,1.99932,94355.0,94343.0,0.3608]
[1765299310397,0.31726,94344.0,94343.0,0.3608]
[1765299310594,0.31726,94344.0,94343.0,0.4087366]
[1765299310595,0.36007409,94344.0,94343.0,0.4087366]
[1765299310796,0.35972795,94344.0,94343.0,0.04851833]
[1765299311401,0.04246795,94344.0,94343.0,0.36284833]
[1765299311594,0.54282795,94344.0,94343.0,0.36684833]
[1765299312002,0.50036,94344.0,94343.0,0.31833]
[1765299312300,0.85894872,94344.0,94343.0,0.05190701]
[1765299312802,0.35959857,94344.0,94343.0,0.05391843]
[1765299313101,0.15512,94328.0,94323.0,0.3608]
[1765299313400,0.85927342,94328.0,94327.0,0.31446693]
[1765299313604,0.85927342,94328.0,94327.0,0.36252218]
[1765299313802,0.00015901,94337.0,94336.0,0.31433]
[1765299314103,0.00015901,94337.0,94336.0,0.67513]
[1765299314104,0.04277243,94337.0,94336.0,0.67513]
[1765299314302,0.00015901,94337.0,94336.0,0.67513]
[1765299314603,0.1622205,94370.0,94360.0,0.09092]
[1765299314805,0.49944,94368.0,94361.0,0.3608]
[1765299315210,0.49944,94368.0,94367.0,0.16345]
[1765299315595,0.49944,94368.0,94367.0,0.31433]
[1765299315798,0.40302601,94369.0,94367.0,0.15088]
[1765299315999,0.04222601,94369.0,94368.0,0.31433]
[1765299316200,0.04222601,94368.0,94367.0,0.36269619]
[1765299316504,0.00015901,94377.0,94376.0,0.16345]
[1765299316704,0.49963901,94377.0,94376.0,0.57218931]
[1765299316903,0.49963901,94377.0,94376.0,0.52425]
[1765299317107,0.49963901,94377.0,94376.0,0.57218931]
[1765299317306,0.81689901,94377.0,94376.0,0.40873931]
[1765299317602,0.81689901,94377.0,94376.0,0.40875881]
[1765299317804,0.15627901,94377.0,94376.0,0.72408881]
[1765299318002,0.65575901,94377.0,94376.0,0.72408881]
[1765299318204,0.31841901,94377.0,94376.0,0.3618]
[1765299318504,0.38133993,94377.0,94376.0,0.57320881]
[1765299318704,0.88081993,94377.0,94376.0,0.57320881]
[1765299319008,0.83918901,94377.0,94376.0,0.3618]
[1765299319604,0.88156756,94377.0,94376.0,0.41070321]
[1765299320003,0.88156756,94377.0,94364.0,0.3608]
[1765299320004,2.2686705,94377.0,94332.0,0.10007]
[1765299320305,1.46444,94376.0,94332.0,0.10007]
[1765299320496,0.1622205,94342.0,94332.0,0.14781631]
[1765299320701,0.3608,94333.0,94332.0,0.14781127]
[1765299320899,0.7322009,94333.0,94332.0,0.14781127]
[1765299321098,0.0106015,94328.0,94320.0,0.09092]
[1765299321299,0.0106041,94305.0,94304.0,0.10007]
[1765299321500,0.04249094,94305.0,94304.0,0.43829]
[1765299321705,0.49948,94305.0,94304.0,0.43829]
[1765299321899,0.54197163,94305.0,94304.0,0.48704868]
[1765299322300,0.90277163,94305.0,94304.0,0.48704868]
[1765299322497,0.90277163,94305.0,94304.0,0.43829]
[1765299322696,0.90277163,94305.0,94304.0,0.48692904]
[1765299322911,0.90281163,94305.0,94304.0,0.31997904]
[1765299323105,0.90281163,94305.0,94304.0,0.27134]
[1765299323309,0.98735438,94305.0,94290.0,0.10113056]
[1765299323607,0.3608,94291.0,94290.0,0.43935056]
[1765299323802,0.86036,94291.0,94290.0,0.43935056]
[1765299324407,0.9134144,94291.0,94290.0,0.43935056]
[1765299324612,0.9134144,94291.0,94267.0,0.01334028]
[1765299324613,0.9028088,94291.0,94267.0,0.01334028]
[1765299324810,0.9028088,94291.0,94260.0,7.659e-05]
[1765299324811,0.0001591,94291.0,94290.0,0.43829]
[1765299325108,0.4997591,94291.0,94290.0,0.43829]
[1765299325311,1.2213591,94291.0,94290.0,0.10007]
[1765299325500,1.26330366,94291.0,94290.0,0.14769298]
[1765299325702,0.76370366,94291.0,94290.0,0.48591298]
[1765299326107,1.0945191,94291.0,94290.0,0.43929]
[1765299326304,1.0955191,94291.0,94290.0,0.43929]
[1765299326708,0.3639591,94291.0,94290.0,0.43929]
[1765299326904,0.3608,94306.0,94305.0,0.43829]
[1765299327104,0.3608,94306.0,94305.0,0.48302183]
[1765299327304,0.3608,94306.0,94305.0,0.43563368]
[1765299327305,0.53281,94306.0,94305.0,0.43563368]
[1765299327714,0.86048,94306.0,94305.0,0.27134]
[1765299327915,1.03249,94306.0,94296.0,0.0001591]
[1765299328112,0.3608,94297.0,94296.0,0.3383791]
[1765299328313,0.86048,94297.0,94296.0,0.3383791]
[1765299328511,0.90175887,94297.0,94296.0,0.38580724]
[1765299328714,0.40203887,94297.0,94296.0,0.38580724]
[1765299329012,1.07372887,94297.0,94296.0,0.04758724]
[1765299329402,1.07372887,94297.0,94296.0,0.05135157]
[1765299329610,1.03249,94297.0,94296.0,0.0031591]
[1765299329814,1.07416139,94297.0,94296.0,0.0031591]
[1765299330017,1.08116139,94297.0,94296.0,0.0041591]
[1765299330417,1.03949,94297.0,94296.0,0.0041591]
[1765299330618,1.07515202,94297.0,94296.0,0.05734073]
[1765299330919,1.03449,94297.0,94296.0,0.0061591]
[1765299331215,1.03449,94297.0,94296.0,0.05529948]
[1765299331216,1.07575207,94297.0,94296.0,0.05529948]
[1765299331611,1.21796,94297.0,94296.0,0.0061591]
[1765299331806,1.25966965,94297.0,94296.0,0.05436177]
[1765299332002,1.25966965,94297.0,94296.0,0.04836177]
[1765299332208,1.25866965,94297.0,94296.0,0.05336177]
[1765299332409,1.25866965,94297.0,94296.0,0.05636177]
[1765299332610,0.75913669,94297.0,94296.0,0.05567323]
[1765299332910,1.25889669,94297.0,94296.0,0.05567323]
[1765299333305,0.75913669,94297.0,94296.0,0.1794291]
[1765299333616,0.3618,94297.0,94296.0,0.3463791]
[1765299333912,0.0857124,94320.0,94296.0,0.3463791]
[1765299333913,0.0001591,94315.0,94303.0,0.0106043]
[1765299334114,0.0001591,94315.0,94314.0,0.33822]
[1765299334310,0.4999191,94315.0,94314.0,0.3858776]
[1765299334512,0.0001591,94315.0,94314.0,0.3858776]
[1765299334813,0.4999591,94315.0,94314.0,0.33822]
[1765299335021,0.871362,94315.0,94314.0,0.33822]
[1765299335212,0.871362,94315.0,94314.0,0.3858776]
[1765299335606,0.371562,94315.0,94314.0,0.3858776]
[1765299335808,0.8607591,94315.0,94296.0,0.3689591]
[1765299336017,0.010604,94306.0,94296.0,0.3639591]
[1765299336219,0.0106043,94304.0,94296.0,0.40991632]
[1765299336420,0.0106043,94304.0,94296.0,0.3609591]
[1765299336608,0.0106043,94304.0,94296.0,0.40921742]
[1765299336814,0.3608,94305.0,94296.0,0.3609591]
[1765299337015,0.17201,94297.0,94296.0,0.40921742]
[1765299337214,0.85524,94297.0,94296.0,0.41021742]
[1765299337609,0.89782093,94297.0,94296.0,0.40992818]
[1765299337809,0.89782093,94297.0,94296.0,0.58119818]
[1765299338012,0.54238093,94297.0,94296.0,0.74814818]
[1765299338219,0.4998,94297.0,94296.0,0.7001791]
[1765299338414,1.226645,94297.0,94296.0,0.0011591]
[1765299338620,0.75882093,94297.0,94296.0,0.0011591]
[1765299338822,0.04258093,94297.0,94296.0,0.3393791]
[1765299339018,0.4998,94297.0,94296.0,0.3393791]
[1765299339318,0.5018,94297.0,94296.0,0.3393791]
[1765299339715,0.002,94297.0,94296.0,0.3383791]
[1765299340022,0.0493652,94297.0,94296.0,1.1001791]
[1765299340224,0.0543652,94297.0,94296.0,1.1001791]
[1765299340811,0.013,94297.0,94296.0,1.1001791]
[1765299341018,0.05511703,94297.0,94296.0,1.14828457]
[1765299341218,0.05511703,94297.0,94296.0,0.74828457]
[1765299341622,0.05111703,94297.0,94296.0,0.74828457]
[1765299341819,0.05111703,94297.0,94296.0,0.38748457]
[1765299342018,0.22312703,94297.0,94296.0,0.38748457]
[1765299342219,0.18201,94297.0,94296.0,0.3393791]
[1765299342422,0.05326244,94297.0,94296.0,0.3886165]
[1765299342923,0.05226244,94297.0,94296.0,0.7494165]
[1765299343422,0.01,94297.0,94296.0,0.3393791]
[1765299343620,0.05277845,94297.0,94296.0,0.38833297]